Cogmind - Beta 14 *** ADVENTURER MODE // 2024.12.11 @ 04:09:52 Player: nacho Result: Self-destructed Performance ------------- Evolutions (1) 500 Regions Visited (3) 600 Robots Destroyed (13) 65 Value Destroyed (151) 151 Prototype IDs (0) 0 Alien Tech Used (0) 0 Bonus (0) 0 TOTAL SCORE: 1316 Bonus ------- None Cogmind --------- Core Integrity 400/400 Matter 300/300 Energy 125/125 System Corruption 0% Temperature Cool (0) Movement Walking (120) Location -9/Materials Parts ------- > --- POWER (2) -------- Light Ion Engine > --- PROPULSION (3) --- Aluminum Leg Aluminum Leg > --- UTILITY (2) ------ Improved Terrain Scanner Seismic Detector > --- WEAPON (2) ------- Medium Laser > --- INVENTORY (5) ---- Light Ion Engine Light Ion Engine Improved Terrain Scanner Peak State ------------ > --- POWER ------------ Light Ion Engine > --- PROPULSION ------- Aluminum Leg Aluminum Leg > --- UTILITY ---------- Improved Terrain Scanner Seismic Detector > --- WEAPON ----------- EM Pulse Gun Medium Laser > --- INVENTORY -------- Light Ion Engine Light Ion Engine Small Storage Unit Improved Terrain Scanner Mining Laser [Rating: 9] Favorites ----------- Power Light Ion Engine Engine Light Ion Engine Propulsion Aluminum Leg Leg Aluminum Leg Flight Unit Flight Unit Utility Improved Terrain Scanner Device Improved Terrain Scanner Storage Small Storage Unit Weapon Medium Laser Energy Gun Medium Laser Build | -11 -10 -10 -9 ------- Run | Yrd Mat Min Mat Slots Evolved 2 | . . . 2 Power 1 | . . . 1 Propulsion 1 | . . . 1 Utility . | . . . . Weapon . | . . . . Parts Attached 14 | 8 3 3 . Power 1 | 1 . . . Engine 1 | 1 . . . Core . | . . . . Reactor . | . . . . Propulsion 6 | 2 2 2 . Treads . | . . . . Leg 4 | 2 . 2 . Wheel . | . . . . Hover . | . . . . Flight 2 | . 2 . . Utility 5 | 3 1 1 . Device 4 | 2 1 1 . Storage 1 | 1 . . . Processor . | . . . . Hackware . | . . . . Protection . | . . . . Artifact . | . . . . Weapon 2 | 2 . . . Energy Gun 2 | 2 . . . Energy Cannon . | . . . . Ballistic Gun . | . . . . Ballistic Cannon . | . . . . Launcher . | . . . . Special Weapon . | . . . . Impact Weapon . | . . . . Slashing Weapon . | . . . . Piercing Weapon . | . . . . Special Melee Weapon . | . . . . Unidentified Prototypes . | . . . . Parts Lost 4 | . 1 3 . Power . | . . . . Propulsion 2 | . . 2 . Utility 1 | . . 1 . Weapon 1 | . 1 . . Highest Loss Streak 4 | . 1 4 . To Critical Strikes . | . . . . Average Slot Usage (%) 91 | . 98 77 . Engine 14 | . 14 14 . Leg 21 | . 20 21 . Flight 5 | . 7 1 . Device 27 | . 28 25 . Energy Gun 22 | . 27 14 . Peak Build Rating 9 | 9 9 8 . Average Rating 7 | 6 8 7 . On Entrance 6 | . 9 8 8 Naked Turns . | . . . . Heaviest Build 13 | 13 10 7 . Greatest Support 20 | 20 20 20 . Greatest Overweight (x) 2 | . 2 . . Average Overweight (x) . | . . . . Largest Inventory Capacity 8 | 8 5 5 . Average Capacity 5 | 6 5 5 . Most Carried 6 | 6 5 5 . Average Carried 3 | 2 4 3 . Final Capacity 5 | 5 5 5 5 Final Carried 5 | 4 5 3 3 Class Distribution -------------------- 100% | Mutant Dominant Class ---------------- Mutant | -10/Materials Mutant | -10/Mines Mutant | -9/Materials Resources | -11 -10 -10 -9 ----------- Run | Yrd Mat Min Mat Matter Collected 315 | 275 10 30 . Remotely . | . . . . Salvage Created 341 | 152 86 103 . Parts 28 | 17 10 1 . Haulers Intercepted . | . . . . Recyclers Shooed . | . . . . Parts Field Recycled . | . . . . Retrieved Matter . | . . . . Parts Self-Destructed . | . . . . Prevented . | . . . . Kills | -11 -10 -10 -9 ------- Run | Yrd Mat Min Mat Combat Hostiles Destroyed 3 | . 1 2 . Guns 2 | . 1 1 . Classes Destroyed 6 | 3 2 1 . Worker 3 | 2 1 . . Tunneler 5 | 4 1 . . Recycler 1 | 1 . . . Watcher 1 | . 1 . . Swarmer 1 | . 1 . . Grunt 2 | . . 2 . Best Kill Streak 3 | 3 1 2 . Combat Bots Only 2 | . 1 2 . Max Kills in Single Turn 1 | 1 1 1 . Gunslinging . | . . . . Exploded . | . . . . Melee . | . . . . Uniques/NPCs Destroyed . | . . . . Combat | -11 -10 -10 -9 -------- Run | Yrd Mat Min Mat Hostile Shots Fired 53 | . 36 17 . Missed 20 | . 14 6 . Damage Taken 380 | 14 166 200 . Core 129 | 7 24 98 . Absorbed by Shields . | . . . . Ignored by Resistances 109 | 4 50 55 . Core Remaining (%) 72 | 97 . 48 . Volleys Fired 39 | 8 10 21 . Largest 2 | 2 2 1 . Hottest 90 | 90 90 50 . Shots Fired 57 | 16 20 21 . Gun 57 | 16 20 21 . Cannon . | . . . . Launcher . | . . . . Special . | . . . . Kinetic . | . . . . Thermal 39 | 8 10 21 . Explosive . | . . . . Electromagnetic 18 | 8 10 . . Robot Hit Streak 7 | 4 4 7 . Robot Miss Streak 3 | 1 2 3 . Penetration Max . | . . . . Secondary Targets . | . . . . Shots Hit Robots 37 | 10 12 15 . Core Hits 15 | 7 4 4 . Critical Kills . | . . . . Critical Parts Destroyed . | . . . . Critical Strikes 6 | 1 1 4 . Burn 6 | 1 1 4 . Melee Attacks . | . . . . Impact . | . . . . Slashing . | . . . . Piercing . | . . . . Sneak Attacks . | . . . . Combat Hostiles . | . . . . Follow-up Attacks . | . . . . Damage Inflicted 653 | 231 205 217 . Guns 515 | 115 196 204 . Cannons . | . . . . Explosions 114 | 114 . . . Melee . | . . . . Ramming 24 | 2 9 13 . Kinetic . | . . . . Thermal 455 | 175 76 204 . Explosive . | . . . . Electromagnetic 174 | 54 120 . . Impact . | . . . . Slashing . | . . . . Piercing . | . . . . Highest Corruption . | . . . . Average Corruption . | . . . . Corruption Purged . | . . . . Corruption Blocked . | . . . . Overload Shots . | . . . . Overflow Damage . | . . . . Projectiles . | . . . . Explosions . | . . . . Melee . | . . . . Knockbacks . | . . . . Impact . | . . . . Kinetic . | . . . . Secondary . | . . . . Self-Inflicted Damage 18 | 14 4 . . Shots 1 | 1 . . . Rammed 3 | . 3 . . Targets Rammed 6 | 1 3 2 . Kicked 3 | 1 . 2 . Crushed . | . . . . Highest Temperature 286 | 90 81 286 . Average Temperature 73 | 41 29 127 . Received Heat Transfer 168 | . 48 120 . Siege Activations . | . . . . Robots Corrupted . | . . . . Combat Hostiles . | . . . . Parts Fried . | . . . . Impact Corruptions . | . . . . Robots Melted 1 | . . 1 . Combat Hostiles 1 | . . 1 . Parts Melted 5 | . . 5 . Heat Transferred 1543 | 359 296 888 . Parts Sabotaged . | . . . . Parts Stolen . | . . . . Parts Stripped . | . . . . Power Chain Reactions 2 | 2 . . . Alert | -11 -10 -10 -9 ------- Run | Yrd Mat Min Mat Peak Influence 101 | 35 101 50 . Initial 29 | . 19 29 16 Average 44 | 15 60 44 . Maximum Alert Level . | . . . . Low Security (%) 100 | 100 100 100 . Level 1 . | . . . . Level 2 . | . . . . Level 3 . | . . . . Level 4 . | . . . . Level 5 . | . . . . High Security . | . . . . Max Security . | . . . . Squads Dispatched . | . . . . Investigation . | . . . . Extermination . | . . . . Reinforcement . | . . . . Assault . | . . . . Garrison . | . . . . Intercept . | . . . . Searches Triggered . | . . . . Construction Impeded . | . . . . Haulers Reinforced . | . . . . Active Scanning Responses . | . . . . Cargo Convoy Interrupts . | . . . . Stealth | -11 -10 -10 -9 --------- Run | Yrd Mat Min Mat Distress Signals 1 | . 1 . . Communications Jammed . | . . . . Distress Signals . | . . . . Times Spotted 10 | . 8 2 . Peak Tracking Total 3 | . 3 2 . Tactical Retreats . | . . . . Traps | -11 -10 -10 -9 ------- Run | Yrd Mat Min Mat Traps Triggered . | . . . . Indirectly . | . . . . Trap Hack Attempts . | . . . . Triggered . | . . . . Disarmed . | . . . . Reprogrammed . | . . . . Reused . | . . . . Traps Extracted . | . . . . Installed . | . . . . Triggered . | . . . . Machines | -11 -10 -10 -9 ---------- Run | Yrd Mat Min Mat Machines Disabled . | . . . . Max in Single Turn . | . . . . Machines Repaired . | . . . . Machines Dismantled . | . . . . Machines Sabotaged . | . . . . Overloaded Fab Kills . | . . . . Hacking | -11 -10 -10 -9 --------- Run | Yrd Mat Min Mat Machines Accessed 2 | . 2 . . Terminals 2 | . 2 . . Fabricators . | . . . . Repair Stations . | . . . . Recycling Units . | . . . . Scanalyzers . | . . . . Garrison Access . | . . . . Total Hacks 5 | . 5 . . Successful 4 | . 4 . . Failed 1 | . 1 . . Catastrophic . | . . . . Database Lockouts . | . . . . Manual . | . . . . Terminals 5 | . 5 . . Fabricators . | . . . . Repair Stations . | . . . . Recycling Units . | . . . . Scanalyzers . | . . . . Garrison Access . | . . . . Terminal Hacks 4 | . 4 . . Record 3 | . 3 . . Zone Layout 1 | . 1 . . Fabricator Hacks . | . . . . Repair Station Hacks . | . . . . Recycling Unit Hacks . | . . . . Scanalyzer . | . . . . Garrison Access Hacks . | . . . . Unauthorized Hacks . | . . . . Terminals . | . . . . Fabricators . | . . . . Repair Stations . | . . . . Recycling Units . | . . . . Scanalyzers . | . . . . Garrison Access . | . . . . Data Cores Recovered . | . . . . Used . | . . . . Hacking Detections 1 | . 1 . . Full Trace Events . | . . . . Feedback Events . | . . . . Feedback Blocked . | . . . . Robot Schematics Acquired . | . . . . Robots Built . | . . . . Authchips . | . . . . Time . | . . . . Total Robot Build Rating . | . . . . Part Schematics Acquired . | . . . . Parts Built . | . . . . Authchips . | . . . . Time . | . . . . Total Part Build Rating . | . . . . Parts Repaired . | . . . . Time . | . . . . Parts Recycled . | . . . . Recycled Matter . | . . . . Retrieved Matter . | . . . . Retrieved Components . | . . . . Parts Scanalyzed . | . . . . Part Schematics Acquired . | . . . . Parts Damaged . | . . . . Bothacking | -11 -10 -10 -9 ------------ Run | Yrd Mat Min Mat Used RIF Installer . | . . . . Robots Hacked . | . . . . Non-combat . | . . . . Combat . | . . . . Robot Hacks Applied . | . . . . Relay Couplers Released . | . . . . Fabnet Peak Effective % . | . . . . Robots Rewired . | . . . . Allies Hacked . | . . . . Hacks Repelled . | . . . . Allies | -11 -10 -10 -9 -------- Run | Yrd Mat Min Mat Total Allies . | . . . . Largest Group . | . . . . Highest-Rated Group . | . . . . Highest-Rated Ally . | . . . . Total Orders . | . . . . Ally Attacks . | . . . . Total Damage . | . . . . Kills . | . . . . Allies Corrupted . | . . . . Allies Melted . | . . . . Intel | -11 -10 -10 -9 ------- Run | Yrd Mat Min Mat Robot Analysis Total . | . . . . Derelict Logs Recovered . | . . . . Drone Launches . | . . . . Drone Recoveries . | . . . . Exploration | -11 -10 -10 -9 ------------- Run | Yrd Mat Min Mat Turns Passed 608 | 151 297 160 . Spaces Moved 403 | 98 211 94 . Core 21 | 21 . . . Treads . | . . . . Legs 299 | 77 128 94 . Wheels . | . . . . Hover . | . . . . Flight 83 | . 83 . . Fastest Speed 37 | 50 37 120 . Average Speed 106 | 105 100 120 . Slowest Speed 210 | 120 210 120 . Overloaded Moves . | . . . . Propulsion Burnouts . | . . . . Robots Hopped . | . . . . Cave-ins Triggered . | . . . . Exploration Rate (%) 17 | 7 39 24 1 Regions Visited 3 Branch Regions 1 Pre-discovered Areas . | . . . . Known Exits Taken . | . . . . Unknown Exits Taken 3 | 1 1 1 . Scrap Searched . | . . . . Spaces Dug . | . . . . Terrain Destroyed 6 | 6 . . . Melee . | . . . . Projectile . | . . . . AOE 6 | 6 . . . Terrain Rammed . | . . . . Walls Destroyed . | . . . . Machines Disabled . | . . . . Actions | -11 -10 -10 -9 --------- Run | Yrd Mat Min Mat Total 524 | 130 274 120 . Wait 43 | . 43 . . Move 400 | 97 210 93 . Hop . | . . . . Pick Up 18 | 14 3 1 . Fast Attach . | . . . . Attach 10 | 7 . 3 . Detach . | . . . . Swap 4 | 1 3 . . Drop 4 | 2 2 . . Fire 39 | 8 10 21 . Melee . | . . . . Ram 3 | . 3 . . Kick 3 | 1 . 2 . Crush . | . . . . Escape Stasis . | . . . . Rewire . | . . . . Trap . | . . . . Miscellaneous . | . . . . Route ------- -11/Scrapyard -10/Materials -10/Mines -9/Materials History --------- Turn | Location | Event 6 | -11/Scrapyard | Discovered new exit (range 16) 152 | -11/Scrapyard | Entered Materials 304 | -10/Materials | Build established: Mutant 435 | -10/Materials | Discovered new exit (range 16) 449 | -10/Materials | Entered Mines 466 | -10/Mines | Core integrity fell below 50% 490 | -10/Mines | Lost 4 parts (2n1u1w) 603 | -10/Mines | Discovered new exit (range 5) 609 | -10/Mines | Entered Materials 609 | -9/Materials | Evolved 2 slots: Power x1, Propulsion x1 609 | -9/Materials | Self-destructed Last Messages --------------- 00478_ G-47 Trooper critical meltdown. 00478_ Lgt. Nuclear Core melted. 00478_ Aluminum Leg melted. 00486_ Acquired Aluminum Leg. 00490_ Acquired 22 matter. 00491_ Acquired 8 matter. 00501_ Kicked T-07 Excavator. 00503_ U-05 Engineer lays Concrete. 00525_ R-06 Scavenger suffers critical hit (Burn). 00529_ Kicked R-06 Scavenger out of the way. 00534_ A derelict is hurriedly installing traps. 00536_ 43-FB6(g): "Hehe, this'll put a wrench in their mining defense operations..." 00536_ 43-FB6(g) slips into the shadows. 00536_ T-07 Excavator is excavating. 00603_ EXIT=FOUND PARAMETERS=POWER+1,PROPULSION+1 LOCATION=UNKNOWN GOAL=ESCAPE Map ----- +----------------------------------------------------+ | ???????????????????????????????????????? | | ???????????????????????????????????????? | | ???????????????????????????????????????? | | ???????????????????????????????????????? | | ???????????????????????????????????????? | | ???????????????????????????????????????? | | ???????????????????????????????????????? | | ???????????????????????????????????????? | | ???????????????????????????????????????? | | ???????????????????????????????????????? | | ???????????????? ?????????????????????? | | ?????????????""" "????????????????????? | | ?????????????""" "????????????????????? | | ????????????? ????????????????????? | | ????????????? ????????????????????? | | ????????????? ????????????????????? | | ????????????? #????????????????????? | | ?????????????# #????????????????????? | | ?????????????# #????????????????????? | | ?????????????# #????????????????????? | | ?????????????# #????????????????????? | | ?????????????# #????????????????????? | | ?????????????# #????????????????????? | | ?????????????+ ####?????????????????? | | ?????????????# ??????????????????? | | ?????????????# @ #?????????????????????? | | ?????????????# #?????????????????????? | | ?????????????#####?????????????????????? | | ???????????????????????????????????????? | | ???????????????????????????????????????? | | ???????????????????????????????????????? | | ???????????????????????????????????????? | | ???????????????????????????????????????? | | ???????????????????????????????????????? | | ???????????????????????????????????????? | | ???????????????????????????????????????? | | ???????????????????????????????????????? | | | | | | | | | | | | | | | | | | | | | | | | | | | +----------------------------------------------------+ Best States ------------- Heat Dissipation 25 Energy Generation 10 Energy Capacity 125 Matter Stores 300 Matter Capacity 300 Sight Range 16 Terrain Scan Range 16 Terrain Scan Density 10 ECM Strength 1 Resistance: KI 20 Resistance: TH 20 Resistance: EX 20 Resistance: EM 20 Resistance: I 20 Resistance: S 20 Resistance: P 20 Evasion (%) 60 Offensive Hacking 10 Item Schematics ----------------- None Robot Schematics ------------------ None Fabricated ------------ Nothing Alien Tech Used ----------------- None Achievements -------------- None Challenges ------------ None Game ------ Seed NovaBoreKinecellerator Manual? 0 Play Time 00:10:22 Cumulative 39.7 hours Start 2024.12.11 @ 03:59:41 End 2024.12.11 @ 04:09:52 Sessions 1 Manual Loads 0 Difficulty Adventurer Special Mode None Game No. 26 Rogue 1 Adventurer 25 Explorer 0 Win Type - Total 0 Types 0/0/0/0/0/0/0/0/0 Lore% 10 Gallery% 25 Achievement% 21 Wizard Run 0 Options --------- Layout 1 ASCII 0 Keyboard 1 Movement Arrows Keybinds 0 Fullscreen 1 Font 24/Smallcaps Map View 50x35 Zoom Use 0% Tactical HUD 1 Map Filters NONE Filters NONE Steam 1 RUN: 20e77b53-f6c4-44e1-b42c-26fcde8cff85